[Event "Titled Tuesday Blitz May 4 2021"]
[White "Arias, Juan Cruz"]
[Black "Onufrienko, Vladislav"]
[WhiteFideId "118540"]
[BlackFideId "13804332"]
[WhiteElo "2083"]
[BlackElo "1661"]
[Result "1-0"]
[Round "07"]
[TimeControl "180+1"]
[Date "2021.05.04"]
[WhiteClock "0:00:29"]
[BlackClock "0:00:02"]

1. e4 {[%clk 0:03:00]}  Nf6 {[%clk 0:02:59]} 2. e5 {[%clk 0:03:00]}  Nd5 {[%clk 0:03:00]} 3. c4 {[%clk 0:03:01]}  Nb6 {[%clk 0:03:00]} 4. a4 {[%clk 0:03:02]}  a5 {[%clk 0:02:58]} 5. c5 {[%clk 0:03:02]}  Nd5 {[%clk 0:02:58]} 6. Nc3 {[%clk 0:03:03]}  e6 {[%clk 0:02:58]} 7. Nxd5 {[%clk 0:03:01]}  exd5 {[%clk 0:02:58]} 8. d4 {[%clk 0:03:02]}  d6 {[%clk 0:02:59]} 9. Bb5+ {[%clk 0:02:55]}  c6 {[%clk 0:02:57]} 10. cxd6 {[%clk 0:02:54]}  cxb5 {[%clk 0:02:56]} 11. axb5 {[%clk 0:02:55]}  Qb6 {[%clk 0:02:48]} 12. Ne2 {[%clk 0:02:36]}  Bg4 {[%clk 0:02:44]} 13. f3 {[%clk 0:02:34]}  Bd7 {[%clk 0:02:34]} 14. Nc3 {[%clk 0:02:30]}  Be6 {[%clk 0:02:25]} 15. O-O {[%clk 0:02:28]}  Nd7 {[%clk 0:02:25]} 16. Kh1 {[%clk 0:02:27]}  g6 {[%clk 0:02:02]} 17. Be3 {[%clk 0:02:14]}  Bg7 {[%clk 0:02:01]} 18. Qe2 {[%clk 0:02:08]}  O-O {[%clk 0:02:00]} 19. Na4 {[%clk 0:02:06]}  Qd8 {[%clk 0:01:57]} 20. Rac1 {[%clk 0:02:01]}  f6 {[%clk 0:01:46]} 21. f4 {[%clk 0:02:00]}  Rc8 {[%clk 0:01:36]} 22. Bd2 {[%clk 0:01:54]}  fxe5 {[%clk 0:01:31]} 23. dxe5 {[%clk 0:01:51]}  b6 {[%clk 0:00:37]} 24. Rc6 {[%clk 0:01:49]}  Nc5 {[%clk 0:00:32]} 25. Nxc5 {[%clk 0:01:38]}  bxc5 {[%clk 0:00:33]} 26. Ra1 {[%clk 0:01:23]}  Rxc6 {[%clk 0:00:30]} 27. bxc6 {[%clk 0:01:22]}  Qb6 {[%clk 0:00:30]} 28. c7 {[%clk 0:01:10]}  Qxb2 {[%clk 0:00:30]} 29. Qe1 {[%clk 0:01:01]}  d4 {[%clk 0:00:24]} 30. Rb1 {[%clk 0:00:52]}  Qa3 {[%clk 0:00:23]} 31. Bxa5 {[%clk 0:00:40]}  c4 {[%clk 0:00:24]} 32. Bb4 {[%clk 0:00:40]}  Qd3 {[%clk 0:00:20]} 33. d7 {[%clk 0:00:39]}  Bxd7 {[%clk 0:00:18]} 34. Bxf8 {[%clk 0:00:39]}  Bxf8 {[%clk 0:00:19]} 35. e6 {[%clk 0:00:34]}  Bc6 {[%clk 0:00:12]} 36. c8=Q {[%clk 0:00:33]}  Be4 {[%clk 0:00:05]} 37. Rb8 {[%clk 0:00:30]}  Kg7 {[%clk 0:00:02]} 38. Qxf8# {[%clk 0:00:29]} 1-0


[Site "https://www.chess.com"]

[Event "Titled Tuesday Blitz May 4 2021"]
[White "Baches Garcia, Guillermo"]
[Black "Yavorovsky, Valeriy"]
[WhiteFideId "2209764"]
[BlackFideId "14121549"]
[WhiteElo "2442"]
[BlackElo "2267"]
[Result "1/2-1/2"]
[Round "07"]
[TimeControl "180+1"]
[Date "2021.05.04"]
[WhiteClock "0:00:10"]
[BlackClock "0:00:11"]

1. c4 {[%clk 0:03:00]}  e6 {[%clk 0:02:59]} 2. d4 {[%clk 0:03:00]}  d5 {[%clk 0:02:58]} 3. Nc3 {[%clk 0:03:00]}  Be7 {[%clk 0:02:57]} 4. cxd5 {[%clk 0:03:00]}  exd5 {[%clk 0:02:57]} 5. Bf4 {[%clk 0:03:00]}  c6 {[%clk 0:02:57]} 6. e3 {[%clk 0:03:01]}  Bf5 {[%clk 0:02:57]} 7. Bd3 {[%clk 0:03:00]}  Bxd3 {[%clk 0:02:56]} 8. Qxd3 {[%clk 0:03:01]}  Nd7 {[%clk 0:02:57]} 9. Nf3 {[%clk 0:02:58]}  Ngf6 {[%clk 0:02:56]} 10. O-O {[%clk 0:02:58]}  O-O {[%clk 0:02:56]} 11. h3 {[%clk 0:02:56]}  Re8 {[%clk 0:02:56]} 12. Rab1 {[%clk 0:02:54]}  a5 {[%clk 0:02:55]} 13. a3 {[%clk 0:02:53]}  Bf8 {[%clk 0:02:49]} 14. Ne5 {[%clk 0:02:49]}  Nxe5 {[%clk 0:02:38]} 15. Bxe5 {[%clk 0:02:45]}  Bd6 {[%clk 0:02:30]} 16. f4 {[%clk 0:02:35]}  Ne4 {[%clk 0:02:23]} 17. Nxe4 {[%clk 0:02:25]}  dxe4 {[%clk 0:02:21]} 18. Qb3 {[%clk 0:02:18]}  Re7 {[%clk 0:02:17]} 19. Qc4 {[%clk 0:02:03]}  a4 {[%clk 0:02:07]} 20. Rbd1 {[%clk 0:01:50]}  Ra5 {[%clk 0:01:54]} 21. Bxd6 {[%clk 0:01:11]}  Qxd6 {[%clk 0:01:52]} 22. f5 {[%clk 0:01:11]}  Kf8 {[%clk 0:01:39]} 23. f6 {[%clk 0:00:58]}  gxf6 {[%clk 0:01:37]} 24. Rf4 {[%clk 0:00:58]}  f5 {[%clk 0:01:34]} 25. Rdf1 {[%clk 0:00:58]}  Qd5 {[%clk 0:01:32]} 26. Qe2 {[%clk 0:00:56]}  Qe6 {[%clk 0:01:25]} 27. Qh5 {[%clk 0:00:54]}  Qg6 {[%clk 0:01:24]} 28. Qh4 {[%clk 0:00:50]}  h5 {[%clk 0:01:10]} 29. Qf2 {[%clk 0:00:44]}  Rb5 {[%clk 0:01:05]} 30. Qc2 {[%clk 0:00:40]}  Rb3 {[%clk 0:01:02]} 31. Rxf5 {[%clk 0:00:29]}  Rxe3 {[%clk 0:01:00]} 32. Qc5 {[%clk 0:00:29]}  Ke8 {[%clk 0:00:57]} 33. d5 {[%clk 0:00:22]}  Re2 {[%clk 0:00:53]} 34. R5f2 {[%clk 0:00:16]}  Rxf2 {[%clk 0:00:50]} 35. Rxf2 {[%clk 0:00:17]}  e3 {[%clk 0:00:48]} 36. Re2 {[%clk 0:00:18]}  Qg5 {[%clk 0:00:42]} 37. Qa7 {[%clk 0:00:13]}  Qxd5 {[%clk 0:00:40]} 38. Qb8+ {[%clk 0:00:13]}  Qd8 {[%clk 0:00:40]} 39. Qf4 {[%clk 0:00:13]}  Qd1+ {[%clk 0:00:38]} 40. Qf1 {[%clk 0:00:14]}  Qxf1+ {[%clk 0:00:37]} 41. Kxf1 {[%clk 0:00:14]}  f5 {[%clk 0:00:36]} 42. g3 {[%clk 0:00:15]}  h4 {[%clk 0:00:35]} 43. Kg2 {[%clk 0:00:15]}  Re4 {[%clk 0:00:33]} 44. gxh4 {[%clk 0:00:15]}  f4 {[%clk 0:00:33]} 45. Kf3 {[%clk 0:00:15]}  Rc4 {[%clk 0:00:31]} 46. h5 {[%clk 0:00:15]}  Kf7 {[%clk 0:00:31]} 47. Rg2 {[%clk 0:00:15]}  Rd4 {[%clk 0:00:28]} 48. h6 {[%clk 0:00:15]}  Rd6 {[%clk 0:00:26]} 49. h7 {[%clk 0:00:15]}  Rh6 {[%clk 0:00:25]} 50. Kxf4 {[%clk 0:00:15]}  Rxh3 {[%clk 0:00:24]} 51. h8=Q {[%clk 0:00:12]}  Rxh8 {[%clk 0:00:23]} 52. Kxe3 {[%clk 0:00:13]}  Rh3+ {[%clk 0:00:22]} 53. Kd4 {[%clk 0:00:12]}  Rb3 {[%clk 0:00:22]} 54. Kc4 {[%clk 0:00:13]}  Ke6 {[%clk 0:00:21]} 55. Rd2 {[%clk 0:00:13]}  Rg3 {[%clk 0:00:18]} 56. Kb4 {[%clk 0:00:12]}  Rg4+ {[%clk 0:00:16]} 57. Kc5 {[%clk 0:00:11]}  Rg5+ {[%clk 0:00:13]} 58. Kb4 {[%clk 0:00:10]}  Rg4+ {[%clk 0:00:12]} 59. Kc5 {[%clk 0:00:10]}  Rg5+ {[%clk 0:00:12]} 60. Kb4 {[%clk 0:00:10]}  Rg4+ {[%clk 0:00:11]} 1/2-1/2


[Site "https://www.chess.com"]

[Event "Titled Tuesday Blitz May 4 2021"]
[White "Bashirli, Saadat"]
[Black "Provotorov, Ivan"]
[WhiteFideId "13429990"]
[BlackFideId "4154657"]
[WhiteElo "1153"]
[BlackElo "2244"]
[Result "0-1"]
[Round "07"]
[TimeControl "180+1"]
[Date "2021.05.04"]
[WhiteClock "0:01:11"]
[BlackClock "0:00:40"]

1. d4 {[%clk 0:03:00]}  e6 {[%clk 0:02:55]} 2. e4 {[%clk 0:02:58]}  d5 {[%clk 0:02:54]} 3. Nc3 {[%clk 0:02:57]}  Nf6 {[%clk 0:02:54]} 4. e5 {[%clk 0:02:56]}  Nfd7 {[%clk 0:02:54]} 5. Nf3 {[%clk 0:02:55]}  c5 {[%clk 0:02:54]} 6. Be3 {[%clk 0:02:47]}  Nc6 {[%clk 0:02:51]} 7. dxc5 {[%clk 0:02:43]}  Ndxe5 {[%clk 0:02:41]} 8. Bb5 {[%clk 0:02:40]}  Bd7 {[%clk 0:02:34]} 9. O-O {[%clk 0:02:33]}  Be7 {[%clk 0:02:24]} 10. Bxc6 {[%clk 0:02:25]}  Nxf3+ {[%clk 0:02:21]} 11. Qxf3 {[%clk 0:02:23]}  bxc6 {[%clk 0:02:22]} 12. Rad1 {[%clk 0:02:21]}  O-O {[%clk 0:02:15]} 13. Rfe1 {[%clk 0:02:17]}  e5 {[%clk 0:02:02]} 14. Bd2 {[%clk 0:02:09]}  e4 {[%clk 0:01:28]} 15. Qe3 {[%clk 0:02:04]}  f5 {[%clk 0:01:08]} 16. g3 {[%clk 0:02:01]}  f4 {[%clk 0:01:03]} 17. gxf4 {[%clk 0:01:58]}  Bg4 {[%clk 0:01:03]} 18. Rc1 {[%clk 0:01:57]}  Bh4 {[%clk 0:00:58]} 19. Ne2 {[%clk 0:01:51]}  Qd7 {[%clk 0:00:54]} 20. Ng3 {[%clk 0:01:46]}  Bf3 {[%clk 0:00:52]} 21. f5 {[%clk 0:01:40]}  h6 {[%clk 0:00:48]} 22. c3 {[%clk 0:01:34]}  Rxf5 {[%clk 0:00:45]} 23. c4 {[%clk 0:01:15]}  Rf7 {[%clk 0:00:41]} 24. cxd5 {[%clk 0:01:11]}  Qh3 {[%clk 0:00:40]} 0-1


[Site "https://www.chess.com"]

[Event "Titled Tuesday Blitz May 4 2021"]
[White "Belous, Vladimir"]
[Black "Van Foreest, Jorden"]
[WhiteFideId "4174003"]
[BlackFideId "1039784"]
[WhiteElo "2583"]
[BlackElo "2622"]
[Result "1-0"]
[Round "07"]
[TimeControl "180+1"]
[Date "2021.05.04"]
[WhiteClock "0:00:30"]
[BlackClock "0:00:03"]

1. Nf3 {[%clk 0:03:00]}  g6 {[%clk 0:01:29]} 2. c4 {[%clk 0:02:59]}  Nf6 {[%clk 0:01:27]} 3. Nc3 {[%clk 0:02:58]}  Bg7 {[%clk 0:01:28]} 4. e4 {[%clk 0:02:59]}  d6 {[%clk 0:01:28]} 5. d4 {[%clk 0:02:59]}  O-O {[%clk 0:01:29]} 6. h3 {[%clk 0:02:59]}  Nc6 {[%clk 0:01:28]} 7. Bg5 {[%clk 0:02:54]}  h6 {[%clk 0:01:28]} 8. Be3 {[%clk 0:02:53]}  e5 {[%clk 0:01:27]} 9. d5 {[%clk 0:02:53]}  Nd4 {[%clk 0:01:26]} 10. Nxd4 {[%clk 0:02:50]}  exd4 {[%clk 0:01:27]} 11. Bxd4 {[%clk 0:02:51]}  Nxe4 {[%clk 0:01:26]} 12. Bxg7 {[%clk 0:02:46]}  Re8 {[%clk 0:01:26]} 13. Be2 {[%clk 0:02:24]}  Kxg7 {[%clk 0:01:26]} 14. Qd4+ {[%clk 0:02:17]}  Qf6 {[%clk 0:01:25]} 15. Qxf6+ {[%clk 0:02:17]}  Kxf6 {[%clk 0:01:24]} 16. Nxe4+ {[%clk 0:01:57]}  Rxe4 {[%clk 0:01:25]} 17. f3 {[%clk 0:01:58]}  Re7 {[%clk 0:01:19]} 18. Kf2 {[%clk 0:01:58]}  a5 {[%clk 0:01:18]} 19. h4 {[%clk 0:01:48]}  a4 {[%clk 0:01:15]} 20. a3 {[%clk 0:01:43]}  Ra6 {[%clk 0:01:12]} 21. Rad1 {[%clk 0:01:40]}  Rb6 {[%clk 0:01:12]} 22. Rd2 {[%clk 0:01:41]}  Bd7 {[%clk 0:01:08]} 23. Rc1 {[%clk 0:01:31]}  Rb3 {[%clk 0:01:07]} 24. c5 {[%clk 0:01:32]}  Bb5 {[%clk 0:01:04]} 25. Bxb5 {[%clk 0:01:25]}  Rxb5 {[%clk 0:01:05]} 26. cxd6 {[%clk 0:01:24]}  cxd6 {[%clk 0:01:05]} 27. Rc4 {[%clk 0:01:24]}  Ra5 {[%clk 0:01:03]} 28. g4 {[%clk 0:01:10]}  Re5 {[%clk 0:01:03]} 29. Rcd4 {[%clk 0:01:09]}  g5 {[%clk 0:00:57]} 30. h5 {[%clk 0:01:05]}  Rb5 {[%clk 0:00:51]} 31. Rxa4 {[%clk 0:00:52]}  Rexd5 {[%clk 0:00:46]} 32. Rxd5 {[%clk 0:00:53]}  Rxd5 {[%clk 0:00:47]} 33. Ke3 {[%clk 0:00:51]}  Re5+ {[%clk 0:00:37]} 34. Kd3 {[%clk 0:00:47]}  Ke6 {[%clk 0:00:34]} 35. Rb4 {[%clk 0:00:45]}  b5 {[%clk 0:00:33]} 36. Re4 {[%clk 0:00:43]}  f5 {[%clk 0:00:33]} 37. Rxe5+ {[%clk 0:00:32]}  dxe5 {[%clk 0:00:24]} 38. gxf5+ {[%clk 0:00:30]}  Kxf5 {[%clk 0:00:25]} 39. Ke3 {[%clk 0:00:30]}  e4 {[%clk 0:00:10]} 40. fxe4+ {[%clk 0:00:31]}  Ke5 {[%clk 0:00:08]} 41. b3 {[%clk 0:00:30]}  Kd6 {[%clk 0:00:07]} 42. a4 {[%clk 0:00:30]}  bxa4 {[%clk 0:00:03]} 43. bxa4 {[%clk 0:00:31]}  Kc5 {[%clk 0:00:03]} 44. e5 {[%clk 0:00:29]}  Kd5 {[%clk 0:00:03]} 45. a5 {[%clk 0:00:30]} 1-0


[Site "https://www.chess.com"]

[Event "Titled Tuesday Blitz May 4 2021"]
[White "Bologan, Victor"]
[Black "Manukian, Artak"]
[WhiteFideId "13900048"]
[BlackFideId "13301373"]
[WhiteElo "2511"]
[BlackElo "2474"]
[Result "1-0"]
[Round "07"]
[TimeControl "180+1"]
[Date "2021.05.04"]
[WhiteClock "0:00:58"]
[BlackClock "0:00:03"]

1. e4 {[%clk 0:03:00]}  c6 {[%clk 0:02:52]} 2. d4 {[%clk 0:03:00]}  d5 {[%clk 0:02:52]} 3. e5 {[%clk 0:03:00]}  Bf5 {[%clk 0:02:52]} 4. Nf3 {[%clk 0:03:00]}  e6 {[%clk 0:02:51]} 5. Be2 {[%clk 0:02:59]}  c5 {[%clk 0:02:52]} 6. O-O {[%clk 0:02:59]}  Nc6 {[%clk 0:02:51]} 7. c3 {[%clk 0:02:58]}  Qb6 {[%clk 0:02:49]} 8. a3 {[%clk 0:02:54]}  a5 {[%clk 0:02:46]} 9. Qa4 {[%clk 0:02:47]}  c4 {[%clk 0:02:13]} 10. Nbd2 {[%clk 0:02:42]}  Qa6 {[%clk 0:02:04]} 11. Qd1 {[%clk 0:02:35]}  a4 {[%clk 0:01:57]} 12. Nh4 {[%clk 0:02:33]}  Bg6 {[%clk 0:01:52]} 13. f4 {[%clk 0:02:30]}  Nh6 {[%clk 0:01:43]} 14. g4 {[%clk 0:02:25]}  Be7 {[%clk 0:01:40]} 15. Nxg6 {[%clk 0:02:23]}  hxg6 {[%clk 0:01:37]} 16. Qe1 {[%clk 0:02:10]}  Kd7 {[%clk 0:01:35]} 17. Qg3 {[%clk 0:02:09]}  Kc7 {[%clk 0:01:27]} 18. Nf3 {[%clk 0:02:07]}  Raf8 {[%clk 0:01:22]} 19. Ng5 {[%clk 0:02:02]}  Na5 {[%clk 0:01:09]} 20. Be3 {[%clk 0:02:00]}  Nb3 {[%clk 0:01:02]} 21. Rae1 {[%clk 0:01:57]}  Kb8 {[%clk 0:00:56]} 22. Rf2 {[%clk 0:01:53]}  Ka8 {[%clk 0:00:42]} 23. h4 {[%clk 0:01:52]}  f5 {[%clk 0:00:32]} 24. Rh2 {[%clk 0:01:34]}  fxg4 {[%clk 0:00:30]} 25. Bxg4 {[%clk 0:01:34]}  Nf5 {[%clk 0:00:22]} 26. Bxf5 {[%clk 0:01:32]}  gxf5 {[%clk 0:00:21]} 27. Nf3 {[%clk 0:01:30]}  Rfg8 {[%clk 0:00:16]} 28. Kf2 {[%clk 0:01:24]}  Rh6 {[%clk 0:00:15]} 29. Rg1 {[%clk 0:01:22]}  Qc6 {[%clk 0:00:15]} 30. Ng5 {[%clk 0:01:18]}  Qe8 {[%clk 0:00:14]} 31. Qf3 {[%clk 0:01:15]}  Bxg5 {[%clk 0:00:11]} 32. fxg5 {[%clk 0:01:13]}  Rhh8 {[%clk 0:00:09]} 33. h5 {[%clk 0:01:12]}  g6 {[%clk 0:00:10]} 34. Rgh1 {[%clk 0:01:09]}  Rxh5 {[%clk 0:00:05]} 35. Rxh5 {[%clk 0:01:08]}  gxh5 {[%clk 0:00:05]} 36. Qxh5 {[%clk 0:01:06]}  Qxh5 {[%clk 0:00:05]} 37. Rxh5 {[%clk 0:01:05]}  Kb8 {[%clk 0:00:04]} 38. Rh6 {[%clk 0:01:04]}  Re8 {[%clk 0:00:04]} 39. g6 {[%clk 0:01:03]}  Rg8 {[%clk 0:00:03]} 40. Bg5 {[%clk 0:01:02]}  Kc7 {[%clk 0:00:03]} 41. Rh7+ {[%clk 0:00:58]} 1-0


[Site "https://www.chess.com"]

[Event "Titled Tuesday Blitz May 4 2021"]
[White "Bon, Michael"]
[Black "Von Buelow, Georg"]
[WhiteFideId "620696"]
[BlackFideId "4620658"]
[WhiteElo "2420"]
[BlackElo "2222"]
[Result "0-1"]
[Round "07"]
[TimeControl "180+1"]
[Date "2021.05.04"]
[WhiteClock "0:00:03"]
[BlackClock "0:00:13"]

1. e4 {[%clk 0:03:00]}  c5 {[%clk 0:02:58]} 2. Nf3 {[%clk 0:03:00]}  d6 {[%clk 0:02:58]} 3. d4 {[%clk 0:03:00]}  cxd4 {[%clk 0:02:58]} 4. Nxd4 {[%clk 0:03:01]}  Nf6 {[%clk 0:02:58]} 5. Nc3 {[%clk 0:03:02]}  a6 {[%clk 0:02:58]} 6. Bg5 {[%clk 0:02:59]}  e6 {[%clk 0:02:57]} 7. f4 {[%clk 0:02:58]}  Qb6 {[%clk 0:02:57]} 8. Qd2 {[%clk 0:02:46]}  Qxb2 {[%clk 0:02:56]} 9. Rb1 {[%clk 0:02:41]}  Qa3 {[%clk 0:02:54]} 10. f5 {[%clk 0:02:20]}  Nc6 {[%clk 0:02:52]} 11. fxe6 {[%clk 0:02:10]}  fxe6 {[%clk 0:02:51]} 12. Nxc6 {[%clk 0:02:07]}  bxc6 {[%clk 0:02:50]} 13. e5 {[%clk 0:02:06]}  dxe5 {[%clk 0:02:51]} 14. Bxf6 {[%clk 0:01:56]}  gxf6 {[%clk 0:02:50]} 15. Ne4 {[%clk 0:01:57]}  Qxa2 {[%clk 0:02:50]} 16. Rd1 {[%clk 0:01:44]}  Be7 {[%clk 0:02:49]} 17. Be2 {[%clk 0:01:31]}  O-O {[%clk 0:02:47]} 18. O-O {[%clk 0:01:26]}  Ra7 {[%clk 0:02:40]} 19. Rf3 {[%clk 0:01:19]}  f5 {[%clk 0:02:10]} 20. Rg3+ {[%clk 0:00:39]}  Kh8 {[%clk 0:02:08]} 21. Qh6 {[%clk 0:00:39]}  Bb4 {[%clk 0:00:33]} 22. Rd8 {[%clk 0:00:20]}  Qa1+ {[%clk 0:00:21]} 23. Bf1 {[%clk 0:00:19]}  Rf7 {[%clk 0:00:14]} 24. Ng5 {[%clk 0:00:06]}  Bc5+ {[%clk 0:00:13]} 25. Kh1 {[%clk 0:00:03]}  Qxf1# {[%clk 0:00:13]} 0-1


[Site "https://www.chess.com"]

[Event "Titled Tuesday Blitz May 4 2021"]
[White "Bonte, Andrei-Mihai"]
[Black "Budrewicz, Krzysztof"]
[WhiteFideId "1210297"]
[BlackFideId "1127950"]
[WhiteElo "2200"]
[BlackElo "2276"]
[Result "0-1"]
[Round "07"]
[TimeControl "180+1"]
[Date "2021.05.04"]
[WhiteClock "0:00:02"]
[BlackClock "0:01:10"]

1. d4 {[%clk 0:03:00]}  Nf6 {[%clk 0:02:58]} 2. c4 {[%clk 0:03:00]}  g6 {[%clk 0:02:57]} 3. Nc3 {[%clk 0:02:59]}  Bg7 {[%clk 0:02:58]} 4. e4 {[%clk 0:02:58]}  O-O {[%clk 0:02:58]} 5. Nf3 {[%clk 0:02:57]}  d6 {[%clk 0:02:58]} 6. Be2 {[%clk 0:02:57]}  e5 {[%clk 0:02:57]} 7. O-O {[%clk 0:02:57]}  Na6 {[%clk 0:02:57]} 8. Re1 {[%clk 0:02:55]}  c6 {[%clk 0:02:55]} 9. Bf1 {[%clk 0:02:47]}  Qe7 {[%clk 0:02:55]} 10. Rb1 {[%clk 0:02:22]}  Bg4 {[%clk 0:02:52]} 11. d5 {[%clk 0:02:21]}  c5 {[%clk 0:02:47]} 12. a3 {[%clk 0:02:08]}  Ne8 {[%clk 0:02:44]} 13. h3 {[%clk 0:01:46]}  Bd7 {[%clk 0:02:43]} 14. b4 {[%clk 0:01:38]}  f5 {[%clk 0:02:39]} 15. exf5 {[%clk 0:01:36]}  gxf5 {[%clk 0:02:39]} 16. bxc5 {[%clk 0:00:47]}  Nxc5 {[%clk 0:02:38]} 17. Nd4 {[%clk 0:00:47]}  Qf7 {[%clk 0:02:35]} 18. Nb3 {[%clk 0:00:37]}  Nxb3 {[%clk 0:02:13]} 19. Rxb3 {[%clk 0:00:28]}  b6 {[%clk 0:02:13]} 20. Nb5 {[%clk 0:00:27]}  Kh8 {[%clk 0:02:06]} 21. a4 {[%clk 0:00:24]}  f4 {[%clk 0:02:06]} 22. Bb2 {[%clk 0:00:18]}  Rg8 {[%clk 0:02:02]} 23. Qd2 {[%clk 0:00:12]}  Bf6 {[%clk 0:01:57]} 24. Kh2 {[%clk 0:00:10]}  Qg7 {[%clk 0:01:57]} 25. a5 {[%clk 0:00:08]}  a6 {[%clk 0:01:56]} 26. axb6 {[%clk 0:00:05]}  axb5 {[%clk 0:01:56]} 27. b7 {[%clk 0:00:05]}  Rb8 {[%clk 0:01:54]} 28. cxb5 {[%clk 0:00:05]}  Rxb7 {[%clk 0:01:54]} 29. b6 {[%clk 0:00:06]}  h6 {[%clk 0:01:43]} 30. Qa5 {[%clk 0:00:06]}  Bc8 {[%clk 0:01:37]} 31. Qc3 {[%clk 0:00:01]}  Bf5 {[%clk 0:01:33]} 32. Qc6 {[%clk 0:00:01]}  Qd7 {[%clk 0:01:20]} 33. g4 {[%clk 0:00:01]}  fxg3+ {[%clk 0:01:18]} 34. Rxg3 {[%clk 0:00:01]}  Rxg3 {[%clk 0:01:13]} 35. fxg3 {[%clk 0:00:02]}  Qc8 {[%clk 0:01:11]} 36. Qxc8 {[%clk 0:00:01]}  Bxc8 {[%clk 0:01:11]} 37. Rc1 {[%clk 0:00:02]}  Bd7 {[%clk 0:01:10]} 0-1


[Site "https://www.chess.com"]

[Event "Titled Tuesday Blitz May 4 2021"]
[White "Brunner, Nicolas"]
[Black "Mikhalevski, Victor"]
[WhiteFideId "620246"]
[BlackFideId "2801914"]
[WhiteElo "2372"]
[BlackElo "2567"]
[Result "0-1"]
[Round "07"]
[TimeControl "180+1"]
[Date "2021.05.04"]
[WhiteClock "0:00:09"]
[BlackClock "0:00:26"]

1. d4 {[%clk 0:03:00]}  Nf6 {[%clk 0:02:59]} 2. c4 {[%clk 0:03:00]}  g6 {[%clk 0:03:00]} 3. Nc3 {[%clk 0:03:00]}  d5 {[%clk 0:03:00]} 4. Bg5 {[%clk 0:02:59]}  Ne4 {[%clk 0:03:00]} 5. Bh4 {[%clk 0:02:57]}  Nxc3 {[%clk 0:02:58]} 6. bxc3 {[%clk 0:02:56]}  dxc4 {[%clk 0:02:57]} 7. e3 {[%clk 0:02:55]}  Be6 {[%clk 0:02:57]} 8. Nf3 {[%clk 0:02:48]}  Nd7 {[%clk 0:02:52]} 9. Ng5 {[%clk 0:02:33]}  Bd5 {[%clk 0:02:51]} 10. e4 {[%clk 0:02:32]}  h6 {[%clk 0:02:52]} 11. exd5 {[%clk 0:02:31]}  hxg5 {[%clk 0:02:52]} 12. Bxg5 {[%clk 0:02:31]}  Nb6 {[%clk 0:02:53]} 13. Bxc4 {[%clk 0:02:31]}  Nxc4 {[%clk 0:02:26]} 14. Qa4+ {[%clk 0:02:30]}  c6 {[%clk 0:02:27]} 15. Qxc4 {[%clk 0:02:30]}  Qxd5 {[%clk 0:02:25]} 16. Qxd5 {[%clk 0:02:16]}  cxd5 {[%clk 0:02:25]} 17. Rb1 {[%clk 0:02:13]}  b6 {[%clk 0:02:20]} 18. a4 {[%clk 0:02:09]}  Rc8 {[%clk 0:02:19]} 19. Kd2 {[%clk 0:02:08]}  Bh6 {[%clk 0:02:07]} 20. Bxh6 {[%clk 0:02:08]}  Rxh6 {[%clk 0:02:08]} 21. a5 {[%clk 0:02:07]}  g5 {[%clk 0:02:07]} 22. axb6 {[%clk 0:02:05]}  axb6 {[%clk 0:02:07]} 23. Rb5 {[%clk 0:02:05]}  Rd6 {[%clk 0:02:04]} 24. Rhb1 {[%clk 0:02:03]}  Rcc6 {[%clk 0:02:04]} 25. f3 {[%clk 0:01:53]}  Kd7 {[%clk 0:02:01]} 26. Ra1 {[%clk 0:01:51]}  e6 {[%clk 0:01:56]} 27. Ra7+ {[%clk 0:01:49]}  Rc7 {[%clk 0:01:56]} 28. Ra8 {[%clk 0:01:49]}  Rb7 {[%clk 0:01:52]} 29. Rg8 {[%clk 0:01:48]}  f6 {[%clk 0:01:49]} 30. Rg6 {[%clk 0:01:46]}  Kc6 {[%clk 0:01:48]} 31. Rb2 {[%clk 0:01:45]}  Rf7 {[%clk 0:01:48]} 32. Rg8 {[%clk 0:01:45]}  Rdd7 {[%clk 0:01:45]} 33. Re8 {[%clk 0:01:41]}  Rde7 {[%clk 0:01:44]} 34. Rb8 {[%clk 0:01:41]}  Rb7 {[%clk 0:01:43]} 35. Re8 {[%clk 0:01:41]}  Kd7 {[%clk 0:01:42]} 36. Ra8 {[%clk 0:01:39]}  Rh7 {[%clk 0:01:40]} 37. h3 {[%clk 0:01:39]}  Kd6 {[%clk 0:01:36]} 38. Rf8 {[%clk 0:01:38]}  Ke7 {[%clk 0:01:35]} 39. Rc8 {[%clk 0:01:38]}  Kd6 {[%clk 0:01:34]} 40. Rf8 {[%clk 0:01:36]}  f5 {[%clk 0:01:31]} 41. Rg8 {[%clk 0:01:36]}  Rh5 {[%clk 0:01:29]} 42. Kd3 {[%clk 0:01:32]}  Kc6 {[%clk 0:01:25]} 43. Rg6 {[%clk 0:01:25]}  Kd6 {[%clk 0:01:23]} 44. Rb5 {[%clk 0:01:20]}  f4 {[%clk 0:01:14]} 45. Rg8 {[%clk 0:01:14]}  Kc6 {[%clk 0:01:09]} 46. c4 {[%clk 0:01:10]}  g4 {[%clk 0:00:58]} 47. Rc8+ {[%clk 0:00:28]}  Kd7 {[%clk 0:00:57]} 48. Rf8 {[%clk 0:00:20]}  gxf3 {[%clk 0:00:48]} 49. gxf3 {[%clk 0:00:20]}  dxc4+ {[%clk 0:00:41]} 50. Kxc4 {[%clk 0:00:20]}  Rc7+ {[%clk 0:00:41]} 51. Kb4 {[%clk 0:00:20]}  Rxh3 {[%clk 0:00:41]} 52. Rxf4 {[%clk 0:00:20]}  Rh1 {[%clk 0:00:39]} 53. Rf7+ {[%clk 0:00:18]}  Kc6 {[%clk 0:00:39]} 54. Rxc7+ {[%clk 0:00:18]}  Kxc7 {[%clk 0:00:40]} 55. Re5 {[%clk 0:00:18]}  Kd6 {[%clk 0:00:39]} 56. Kb5 {[%clk 0:00:18]}  Rb1+ {[%clk 0:00:38]} 57. Ka6 {[%clk 0:00:19]}  Rb4 {[%clk 0:00:36]} 58. Re4 {[%clk 0:00:17]}  Kd5 {[%clk 0:00:35]} 59. Re5+ {[%clk 0:00:17]}  Kd6 {[%clk 0:00:35]} 60. Re4 {[%clk 0:00:17]}  Rb3 {[%clk 0:00:34]} 61. f4 {[%clk 0:00:17]}  Rb4 {[%clk 0:00:34]} 62. Kb7 {[%clk 0:00:12]}  Kd7 {[%clk 0:00:32]} 63. Re5 {[%clk 0:00:09]}  Rxd4 {[%clk 0:00:28]} 64. f5 {[%clk 0:00:09]}  exf5 {[%clk 0:00:27]} 65. Rxf5 {[%clk 0:00:10]}  Rb4 {[%clk 0:00:27]} 66. Rf6 {[%clk 0:00:09]}  b5 {[%clk 0:00:27]} 67. Rb6 {[%clk 0:00:09]}  Rb1 {[%clk 0:00:26]} 68. Ka6 {[%clk 0:00:09]}  b4 {[%clk 0:00:27]} 69. Ka5 {[%clk 0:00:09]}  b3 {[%clk 0:00:27]} 70. Ka4 {[%clk 0:00:09]}  Ra1+ {[%clk 0:00:26]} 0-1


[Site "https://www.chess.com"]